Cogmind - Beta 17 @@@ ROGUE MODE // 2026.08.10 @ 00:40:27 Player: Boatmurdered Result: Destroyed by S-43 Plague with Heavy Machine Gun Performance ------------- Evolutions (9) 4500 Regions Visited (20) 4000 Robots Destroyed (203) 1015 Value Destroyed (6426) 6426 Prototype IDs (47) 940 Alien Tech Used (0) 0 Bonus (1218) 1218 TOTAL SCORE: 18099 Bonus ------- High Alert Combat Kills 145 Hunted by Unchained 500 Aligned with FarCom 300 Met Data Miner 300 Friendly Fire -27 Cogmind --------- Core Integrity 0/1600 Matter 26/300 Energy 92/100 System Corruption 10% Temperature Cool (0) Movement Core (50) Location -1/Access Parts ------- > --- POWER (2) -------- (None) > --- PROPULSION (13) -- (None) > --- UTILITY (8) ------ (None) > --- WEAPON (2) ------- (None) > --- INVENTORY (5) ---- Quantum Reactor Light Quantum Reactor System Shield Enhanced Nova Cannon Linear Accelerator Peak State ------------ > --- POWER ------------ Particle Reactor Light Quantum Reactor > --- PROPULSION ------- Xenon Bombardment Thruster Biomechanical Wings Field Propulsion Drive Nuclear Pulse Array Cooled Field Propulsion Drive Cooled Field Propulsion Drive Field Propulsion Array Impulse Thruster Array Impulse Thruster Array > --- UTILITY ---------- Large Storage Unit Advanced Melee Analysis Suite Advanced ECM Suite Advanced Reaction Control System Improved Light Armor Plating Hacking Suite Hacking Suite Improved System Shield > --- WEAPON ----------- Neutron Missile Launcher Neutron Missile Launcher > --- INVENTORY -------- Quantum Reactor Light Quantum Reactor Q-thruster Advanced Melee Analysis Suite Advanced Transmission Jammer Improved Reaction Control System Improved Light Armor Plating System Shield Linear Accelerator Neutron Missile Launcher Neutron Missile Launcher Power Maul [Rating: 161] Favorites ----------- Power Ion Engine Engine Ion Engine Power Core Light Nuclear Core Reactor Light Quantum Reactor Propulsion Light Treads Treads Light Treads Wheel Armored Huge Wheel Hover Unit Combat Gravmag System Flight Unit Xenon Bombardment Thruster Utility Hacking Suite Device Advanced ECM Suite Storage Large Storage Unit Processor Transport Network Coupler Hackware Hacking Suite Protection Hardened Light Armor Plating Weapon Improved EM Shotgun Energy Gun Improved EM Shotgun Energy Cannon EM Pulse Cannon Ballistic Gun Coil Gun Ballistic Cannon Linear Accelerator Launcher Neutron Missile Launcher Special Weapon Remote Datajack Impact Weapon Power Maul Slashing Weapon Great Axe Special Melee Weapon Improved Datajack Build | -11 -10 -10 -9 -9 -9 -8 -8 -7 -7 -7 -7 -6 -6 -6 -6 -5 -4 -3 -2 -1 ------- Run | Yrd Mat Min Mat Min Exi Min Mat Fac Low Low Dat Pro Fac Low Low Fac Fac Res Res Acc Slots Evolved 18 | . . . 2 . . . 2 2 . . . . 2 . . 2 2 2 2 2 Power 1 | . . . . . . . . . . . . . . . . . . 1 . . Propulsion 11 | . . . 1 . . . 1 1 . . . . . . . 2 2 1 1 2 Utility 6 | . . . 1 . . . 1 1 . . . . 2 . . . . . 1 . Weapon . | . . . . . . . . . . . . . . . . . . . . . Parts Attached 195 | 7 16 1 16 4 1 1 33 19 10 3 1 2 10 5 . 22 17 8 5 14 Power 30 | 1 3 . 1 1 . . 6 2 2 . . . 1 . . 3 2 2 2 4 Engine 14 | 1 3 . 1 1 . . 6 1 . . . . . . . 1 . . . . Core 7 | . . . . . . . . 1 2 . . . 1 . . 2 1 . . . Reactor 9 | . . . . . . . . . . . . . . . . . 1 2 2 4 Propulsion 53 | 2 4 . 3 1 . 1 8 5 2 1 . 1 5 . . 6 6 5 1 2 Treads 27 | 2 4 . 3 1 . 1 8 4 1 1 . 1 . . . . . 1 . . Leg . | . . . . . . . . . . . . . . . . . . . . . Wheel 1 | . . . . . . . . 1 . . . . . . . . . . . . Hover 2 | . . . . . . . . . . . . . . . . . . 1 . 1 Flight 23 | . . . . . . . . . 1 . . . 5 . . 6 6 3 1 1 Utility 61 | 2 3 1 4 1 . . 10 7 3 . 1 1 4 2 . 11 5 1 2 3 Device 20 | 1 . . . . . . 1 1 . . 1 . 2 2 . 6 3 . 2 1 Storage 6 | 1 2 1 . . . . 2 . . . . . . . . . . . . . Processor 6 | . 1 . 1 . . . . . . . . . 1 . . 2 1 . . . Hackware 8 | . . . . . . . . 4 . . . . 1 . . 1 1 . . 1 Protection 21 | . . . 3 1 . . 7 2 3 . . 1 . . . 2 . 1 . 1 Artifact . | . . . . . . . . . . . . . . . . . . . . . Weapon 51 | 2 6 . 8 1 1 . 9 5 3 2 . . . 3 . 2 4 . . 5 Energy Gun 20 | 1 3 . 5 . 1 . 3 2 2 . . . . 2 . 1 . . . . Energy Cannon 6 | . 2 . . . . . 2 . . . . . . . . 1 . . . 1 Ballistic Gun 3 | 1 1 . . . . . . . 1 . . . . . . . . . . . Ballistic Cannon 1 | . . . . . . . . . . . . . . . . . . . . 1 Launcher 12 | . . . 2 . . . 2 1 . . . . . . . . 4 . . 3 Special Weapon 1 | . . . . . . . . 1 . . . . . . . . . . . . Impact Weapon 5 | . . . . 1 . . 1 . . 2 . . . 1 . . . . . . Slashing Weapon 1 | . . . . . . . . 1 . . . . . . . . . . . . Piercing Weapon . | . . . . . . . . . . . . . . . . . . . . . Special Melee Weapon 2 | . . . 1 . . . 1 . . . . . . . . . . . . . Unidentified Prototypes 3 | . . . . . . . . . 1 . . . . . . . 2 . . . Parts Lost 39 | . 1 . . 2 . . 1 5 5 3 . . . . . 3 4 2 . 13 Power 4 | . . . . . . . . . . . . . . . . 1 1 . . 2 Propulsion 19 | . . . . 1 . . . 1 3 2 . . . . . . 3 2 . 7 Utility 11 | . . . . 1 . . . 2 1 1 . . . . . 2 . . . 4 Weapon 5 | . 1 . . . . . 1 2 1 . . . . . . . . . . . Highest Loss Streak 6 | . 1 . . 2 . . 1 2 2 3 . . . . . 2 4 2 . 6 To Critical Strikes . | . . . . . . . . . . . . . . . . . . . . . Average Backups 14 | 3 10 15 14 13 13 15 14 17 16 17 20 19 14 14 15 13 13 12 11 11 Power 1 | 1 2 1 1 1 1 1 1 1 1 1 2 2 2 1 1 1 . . 1 1 Propulsion 3 | . 2 5 3 2 2 2 3 7 6 6 8 7 2 2 2 1 2 1 . . Utility 3 | . 3 2 4 4 4 4 2 3 4 4 4 5 3 4 5 5 5 5 5 3 Weapon 4 | . 2 5 5 5 5 7 5 4 3 5 5 5 6 6 7 5 4 4 4 4 Tool/Special . | . . . . . . . . . . . . . . . . . . . . . Unused Backups 39 | . 9 1 3 . . . 6 2 . . . . 1 . . 9 5 . . 3 Power 4 | . 2 1 . . . . . . . . . . . . . 1 . . . . Propulsion 3 | . . . 1 . . . . 1 . . . . . . . . 1 . . . Utility 16 | . 4 . . . . . 3 1 . . . . . . . 4 1 . . 3 Weapon 15 | . 3 . 2 . . . 3 . . . . . 1 . . 3 3 . . . Tool/Special 1 | . . . . . . . . . . . . . . . . 1 . . . . Average Slot Usage (%) 92 | . 100 100 99 99 98 88 95 96 93 85 76 90 76 81 80 91 84 85 81 78 Engine 5 | . 14 14 11 11 11 11 9 4 . . . . . . . 2 . . . . Core 1 | . . . . . . . . 2 7 7 7 7 6 6 6 2 1 1 . . Treads 25 | . 28 28 32 32 33 33 35 37 34 26 23 29 1 . . . . . . . Flight 9 | . . . . . . . . . . . . . 30 33 33 38 36 35 33 33 Device 3 | . 2 . . . . . . . . . 5 7 12 13 13 16 11 6 7 4 Storage 8 | . 14 14 11 11 11 11 9 7 7 7 7 7 6 6 6 5 5 4 4 3 Processor 5 | . 11 14 12 11 11 11 9 . . . . . 2 6 6 2 5 4 4 3 Hackware 7 | . . . . . . . . 15 17 11 7 7 12 13 13 11 13 14 13 14 Protection 9 | . . . 9 10 11 11 17 11 12 15 15 15 1 . . 2 . 2 4 3 Energy Gun 6 | . 9 28 21 12 20 11 5 7 3 . . . . . . . . . . . Energy Cannon 2 | . 12 . . . . . 7 . . . . . . . . . . . . . Impact Weapon 1 | . . . . 1 . . . . . . 7 6 . . . 4 4 4 4 3 Slashing Weapon 1 | . . . . . . . . 5 7 6 . . . . . . . . . . Peak Build Rating 161 | 7 16 16 20 19 28 28 38 44 45 44 39 43 54 54 49 80 112 123 140 161 Average Rating 45 | 6 10 16 19 16 18 27 30 36 40 41 37 42 44 49 49 68 97 114 133 145 On Entrance 45 | . 7 16 16 19 15 28 27 30 43 44 39 37 43 48 49 49 80 97 120 140 Avg Prop Armor Cover (%) 4 | . . . . . . . . . 6 . . . . . . . . 3 . . Naked Turns 8 | . . . . . . . . . . . . . . . . . . . . 8 Heaviest Build 84 | 14 31 31 39 40 38 38 73 74 59 59 58 68 64 30 30 40 48 57 70 84 Greatest Support 102 | 40 46 46 69 66 63 63 83 102 102 82 62 82 82 30 30 51 66 67 82 95 Greatest Overweight (x) 1 | . . . . . . . . 1 . 1 . . . . . . . . . . Average Overweight (x) . | . . . . . . . . . . . . . . . . . . . . . Largest Inventory Capacity 25 | 8 15 25 15 15 15 15 20 20 20 20 20 20 20 15 15 15 15 15 15 15 Average Capacity 16 | 7 11 15 15 15 15 15 15 20 20 20 20 20 15 15 15 15 15 15 15 14 Most Carried 20 | 8 15 16 15 15 15 15 16 20 20 20 20 20 20 15 15 15 15 15 15 14 Average Carried 14 | 3 10 15 14 13 13 14 14 17 16 17 19 19 14 14 15 13 14 13 11 11 Final Capacity 20 | 8 15 15 15 15 15 15 20 20 20 20 20 20 15 15 15 15 15 15 15 5 Final Carried 20 | 8 15 15 15 13 15 15 16 20 17 20 20 20 14 15 15 14 11 13 15 5 Class Distribution -------------------- 40% | Mutant 20% | Hacker-Sprinter 19% | Scavenger-Mutant 16% | Hacker-Mutant 3% | Derelict-Sprinter Dominant Class ---------------- Mutant | -10/Materials Mutant | -10/Mines Mutant | -9/Materials Mutant | -9/Mines Mutant | -9/Exiles Scavenger-Mutant | -8/Mines Mutant | -8/Materials Hacker-Mutant | -7/Factory Hacker-Mutant | -7/Lower Caves Hacker-Mutant | -7/Lower Caves Mutant | -7/Data Miner Scavenger-Mutant | -6/Proximity Caves Hacker-Sprinter | -6/Factory Hacker-Sprinter | -6/Lower Caves Hacker-Sprinter | -6/Lower Caves Hacker-Sprinter | -5/Factory Hacker-Sprinter | -4/Factory Hacker-Sprinter | -3/Research Hacker-Sprinter | -2/Research Hacker-Sprinter | -1/Access Resources | -11 -10 -10 -9 -9 -9 -8 -8 -7 -7 -7 -7 -6 -6 -6 -6 -5 -4 -3 -2 -1 ----------- Run | Yrd Mat Min Mat Min Exi Min Mat Fac Low Low Dat Pro Fac Low Low Fac Fac Res Res Acc Matter Collected 5067 | 377 320 33 344 103 176 49 1169 607 124 155 . 164 40 179 . 316 459 231 60 161 Remotely . | . . . . . . . . . . . . . . . . . . . . . Salvage Created 7842 | 209 650 146 1634 135 . 175 1669 873 243 82 . 98 . 113 . 512 691 253 89 270 Parts 392 | 18 40 12 104 3 . 7 71 63 12 5 . 1 . 3 . 13 23 4 1 12 Haulers Intercepted 20 | . 2 . 5 . . . 5 1 . . . . . . . 1 3 2 1 . Recyclers Shooed 4 | . 3 . . . . . . 1 . . . . . . . . . . . . Parts Field Recycled . | . . . . . . . . . . . . . . . . . . . . . Retrieved Matter . | . . . . . . . . . . . . . . . . . . . . . Parts Self-Destructed 22 | . . . . . . . . . 11 10 . . . 1 . . . . . . Prevented 2 | . . . . . . . . . . . . . . 2 . . . . . . Parts Restored . | . . . . . . . . . . . . . . . . . . . . . Kills | -11 -10 -10 -9 -9 -9 -8 -8 -7 -7 -7 -7 -6 -6 -6 -6 -5 -4 -3 -2 -1 ------- Run | Yrd Mat Min Mat Min Exi Min Mat Fac Low Low Dat Pro Fac Low Low Fac Fac Res Res Acc Combat Hostiles Destroyed 135 | . 15 2 29 5 . 3 32 15 6 2 . 3 . 2 . 7 7 1 . 6 Melee 26 | . . . . . . . 2 11 6 2 . . . . . 3 2 . . . Guns 46 | . 9 2 20 3 . 3 7 1 . . . 1 . . . . . . . . Cannons 15 | . 5 . . . . . 8 . . . . . . . . . . . . 2 AOE 32 | . 1 . 7 2 . . 10 3 . . . 2 . 1 . . 2 . . 4 Classes Destroyed 20 | 3 5 . 3 1 . . 2 2 1 . . 1 . . . . 1 . . 1 Worker 9 | 2 . . 1 . . . 2 . . . . . . . . . 2 . . 2 Builder 8 | . . . 3 . . . 1 2 . . . . . . . . 2 . . . Tunneler 8 | 6 . 2 . . . . . . . . . . . . . . . . . . Hauler 20 | . 2 . 5 . . . 5 1 . . . . . . . 1 3 2 1 . Recycler 8 | 1 . . 4 . . . . 3 . . . . . . . . . . . . Minesweeper 1 | . . . . . . . . . . . . 1 . . . . . . . . Operator 3 | . 1 . 1 . . . 1 . . . . . . . . . . . . . Drone 3 | . . . . . . . . . . . . . . . . . . . . 3 Watcher 11 | . 2 . 3 . . . 3 . . . . . . . . 3 . . . . Swarmer 27 | . 4 . 15 . . . 3 . 3 1 . 1 . . . . . . . . Cutter 2 | . . . . . . . . 2 . . . . . . . . . . . . Grunt 50 | . 11 2 5 2 . 3 17 3 . . . 1 . 1 . . 3 1 . 1 Brawler 2 | . . . 1 . . . 1 . . . . . . . . . . . . . Duelist 4 | . . . . . . . 2 . 1 . . . . 1 . . . . . . Sentry 22 | . . . 8 2 . . 8 1 . 1 . 1 . . . . 1 . . . Demolisher 1 | . . . . 1 . . . . . . . . . . . . . . . . Specialist 1 | . . . . . . . . . . . . . . . . . 1 . . . Hunter 5 | . . . . . . . 1 1 . . . . . . . 3 . . . . Programmer 16 | . . . . . . . . 8 . . . . . . . 4 2 . . 2 Fireman 2 | . . . . . . . . . 2 . . . . . . . . . . . Best Kill Streak 10 | 4 3 2 8 2 . 3 6 10 3 1 . 3 . 2 . 2 6 2 1 4 Combat Bots Only 5 | . 3 2 4 2 . 3 4 5 3 1 . 3 . 2 . 2 2 1 . 3 Max Kills in Single Turn 7 | 1 1 1 3 2 . 1 2 7 1 1 . 2 . 1 . 1 3 1 1 2 Gunslinging 1 | . . . . 1 . . . . . . . . . . . . . . . . Exploded 3 | . 1 . 2 2 . . 2 3 . . . 2 . 1 . . 1 . . 2 Melee 1 | . . . . . . . 1 1 1 1 . . . . . 1 1 . . . Uniques/NPCs Destroyed . | . . . . . . . . . . . . . . . . . . . . . Combat | -11 -10 -10 -9 -9 -9 -8 -8 -7 -7 -7 -7 -6 -6 -6 -6 -5 -4 -3 -2 -1 -------- Run | Yrd Mat Min Mat Min Exi Min Mat Fac Low Low Dat Pro Fac Low Low Fac Fac Res Res Acc Hostile Shots Fired 1227 | . 77 7 93 29 . 18 154 181 195 52 . 25 7 8 . 45 109 8 4 215 Missed 429 | . 15 4 31 5 . 3 40 53 47 25 . 14 4 4 . 19 70 2 3 90 Hits 798 | . 62 3 62 24 . 15 114 128 148 27 . 11 3 4 . 26 39 6 1 125 Melee 11 | . . . . . . . 6 3 2 . . . . . . . . . . . Projectile 787 | . 62 3 62 24 . 15 108 125 146 27 . 11 3 4 . 26 39 6 1 125 AOE 9 | . . . . 7 . . . 1 . . . . . . . . . . . 1 Critical Strikes 50 | . 1 . 4 . . 1 8 5 10 1 . . . . . 2 3 . . 15 Part Disruptions 8 | . . . . . . . . . 1 . . . . . . . . . . 7 Damage Taken 13480 | . 705 36 929 683 . 250 1941 1529 2173 275 . 111 16 73 . 509 1000 117 25 3108 Core 2794 | . 150 26 127 51 . 50 133 137 135 41 . . 5 19 . 82 221 . . 1617 Absorbed by Shields . | . . . . . . . . . . . . . . . . . . . . . Redirected to Shielding 19 | . . . . . . . . . 4 15 . . . . . . . . . . Ignored by Resistances 160 | . . . . . . . 155 5 . . . . . . . . . . . . Regen/Repaired (Parts) 1471 | . . . 181 . . . 273 969 . . . . . . . 48 . . . . Core Remaining (%) 77 | 100 . 29 . . . 43 75 . . . . 55 . . 97 91 80 100 100 . Volleys Fired 263 | 24 60 8 67 12 . . 47 20 1 3 . 4 . 2 . . 5 . . 10 Largest 2 | 2 2 2 2 2 . . 2 2 1 1 . 2 . 2 . . 2 . . 2 Hottest 126 | 60 120 90 90 90 . . 126 108 50 30 . 69 . 90 . . 98 . . 120 Shots Fired 576 | 48 118 15 125 24 1 18 154 32 3 7 . 6 . 4 . . 10 . . 11 Gun 434 | 48 98 15 116 12 1 18 85 25 3 7 . 2 . 4 . . . . . . Cannon 83 | . 20 . . . . . 54 5 . . . . . . . . . . . 4 Launcher 58 | . . . 9 12 . . 15 1 . . . 4 . . . . 10 . . 7 Special 1 | . . . . . . . . 1 . . . . . . . . . . . . Kinetic 95 | 24 60 . . . . . . . 1 7 . 2 . . . . . . . 1 Thermal 157 | 24 44 . . . . 18 65 . . . . . . 3 . . . . . 3 Explosive 58 | . . . 9 12 . . 15 1 . . . 4 . . . . 10 . . 7 Electromagnetic 265 | . 14 15 116 12 1 . 74 30 2 . . . . 1 . . . . . . Robot Hit Streak 18 | 5 8 6 16 8 1 9 18 6 . . . 3 . 2 . . 8 . . 3 Robot Miss Streak 5 | 2 5 1 5 2 1 1 3 2 . . . 1 . 2 . . . . . 4 Penetration Max . | . . . . . . . . . . . . . . . . . . . . . Secondary Targets 5 | . 2 . 2 1 . . . . . . . . . . . . . . . . Max Gunslinging Chain 1 | . 1 . 1 1 . . . . . . . . . . . . . . . . Autonomous 84 | . . . . . . 18 66 . . . . . . . . . . . . . Shots Hit Robots 549 | 29 73 7 111 16 1 16 143 61 18 4 . 4 . 2 . 25 28 5 2 4 Core Hits 286 | 10 29 6 72 19 . 4 65 33 9 2 . 8 . 1 . 2 14 . . 12 Critical Kills 2 | . 1 . . . . . . . . . . . . . . 1 . . . . Critical Parts Destroyed 14 | . . . . . . . . . . . . . . . . 7 4 3 . . Critical Strikes 27 | . 3 . . . . . 2 7 . . . . . . . 8 4 3 . . Burn 2 | . 2 . . . . . . . . . . . . . . . . . . . Destroy 1 | . 1 . . . . . . . . . . . . . . . . . . . Corrupt 2 | . . . . . . . 2 . . . . . . . . . . . . . Smash 15 | . . . . . . . . . . . . . . . . 8 4 3 . . Sever 7 | . . . . . . . . 7 . . . . . . . . . . . . Melee Attacks 290 | . . . 10 3 . . 42 61 27 7 . 3 1 2 . 56 41 6 15 16 Impact 169 | . . . . 3 . . 26 . . . . 3 1 2 . 56 41 6 15 16 Slashing 95 | . . . . . . . . 61 27 7 . . . . . . . . . . Piercing . | . . . . . . . . . . . . . . . . . . . . . Sneak Attacks 35 | . . . 10 . . . 7 4 . 1 . 1 . . . 3 6 2 1 . Combat Hostiles 6 | . . . . . . . . 3 . . . . . . . 2 1 . . . Follow-up Attacks . | . . . . . . . . . . . . . . . . . . . . . Damage Inflicted 20023 | 331 1148 139 2406 599 10 461 5412 2195 647 206 . 363 . 166 . 1587 2276 423 169 1485 Guns 5601 | 331 854 139 1531 227 10 461 1860 127 . . . 21 . 40 . . . . . . Cannons 1552 | . 229 . . . . . 1192 20 . . . . . . . . . . . 111 Explosions 6035 | . 61 . 874 372 . . 1961 398 . . . 227 . 83 . . 746 . . 1313 Melee 6808 | . . . . . . . 377 1650 647 206 . 115 . 43 . 1587 1530 423 169 61 Ramming 27 | . 4 . 1 . . . 22 . . . . . . . . . . . . . Kinetic 569 | 155 393 . . . . . . . . . . 21 . . . . . . . . Thermal 4028 | 176 573 . 402 167 . 461 1969 73 . . . . . 96 . . . . . 111 Explosive 4842 | . . . 472 205 . . 1554 325 . . . 227 . . . . 746 . . 1313 Electromagnetic 3749 | . 178 139 1531 227 10 . 1490 147 . . . . . 27 . . . . . . Impact 4305 | . . . . . . . 377 . . . . 115 . 43 . 1587 1530 423 169 61 Slashing 2503 | . . . . . . . . 1650 647 206 . . . . . . . . . . Piercing . | . . . . . . . . . . . . . . . . . . . . . Highest Corruption 10 | . 1 1 1 1 1 1 1 7 7 7 7 7 . 1 1 4 6 . 1 10 Average Corruption 3 | . 1 1 1 1 1 1 1 4 7 7 7 7 . 1 1 3 5 . 1 4 Corruption Purged . | . . . . . . . . . . . . . . . . . . . . . Corruption Blocked . | . . . . . . . . . . . . . . . . . . . . . Effects 278 | . 3 9 . 4 8 2 10 77 29 39 3 22 . 2 . 41 2 . . 27 Message Errors 75 | . . . . 1 3 . 4 25 5 10 3 4 . 2 . 11 . . . 7 Matter Fused 65 | . 3 2 . . 2 1 2 14 10 10 . 7 . . . 9 . . . 5 Heat Flow Errors 36 | . . . . 1 1 . 2 12 3 3 . 5 . . . 5 . . . 4 Energy Discharges 36 | . . 3 . . . . . 11 7 5 . . . . . 5 2 . . 3 Parts Rejected 2 | . . . . . . 1 . . . . . . . . . 1 . . . . Parts Fused 3 | . . . . . . . . 2 . . . 1 . . . . . . . . Data Loss (minor) 29 | . . 3 . 2 . . . 8 2 6 . 1 . . . 4 . . . 3 Data Loss (major) 12 | . . . . . . . 1 1 . 1 . 2 . . . 4 . . . 3 Misfires 11 | . . . . . 1 . 1 2 2 4 . 1 . . . . . . . . Alerts 8 | . . . . . 1 . . 2 . . . 1 . . . 2 . . . 2 Weapon Failures 1 | . . 1 . . . . . . . . . . . . . . . . . . Overload Shots . | . . . . . . . . . . . . . . . . . . . . . Overflow Damage 2199 | . . . 39 . . . 60 117 53 45 . 75 . 3 . 727 527 322 30 201 Projectiles . | . . . . . . . . . . . . . . . . . . . . . Explosions 283 | . . . 39 . . . 16 25 . . . . . . . . 39 . . 164 Melee 1916 | . . . . . . . 44 92 53 45 . 75 . 3 . 727 488 322 30 37 Knockbacks 16 | . . . . . . . 1 . . . . 1 . . . 8 6 . . . Impact 16 | . . . . . . . 1 . . . . 1 . . . 8 6 . . . Kinetic . | . . . . . . . . . . . . . . . . . . . . . Secondary . | . . . . . . . . . . . . . . . . . . . . . Self-Inflicted Damage 1083 | . 40 . 237 165 . . 224 44 . . . . . . . . . . . 373 Shots 27 | . 1 . 8 5 . . 7 1 . . . . . . . . . . . 5 Rammed 7 | . 2 . 1 . . . 4 . . . . . . . . . . . . . Targets Rammed 7 | . 2 . 1 . . . 4 . . . . . . . . . . . . . Kicked . | . . . . . . . . . . . . . . . . . . . . . Crushed . | . . . . . . . . . . . . . . . . . . . . . Highest Temperature 575 | . 240 96 231 288 244 9 466 279 312 200 . 271 . 24 . 311 373 306 303 575 Average Temperature 85 | . 68 43 65 101 110 6 110 88 77 87 . 96 . 9 . 63 35 76 129 126 Received Heat Transfer 3969 | . 255 21 234 111 . 153 693 309 1429 90 . 12 . 27 . . 60 42 . 533 Effects 27 | . . . 1 . . . 10 . . . . . . . . 4 1 . 1 10 Shutdowns 3 | . . . . . . . 1 . . . . . . . . . . . . 2 Energy Bleed 7 | . . . 1 . . . . . . . . . . . . 1 1 . 1 3 Interference 9 | . . . . . . . 3 . . . . . . . . 3 . . . 3 Matter Decay 1 | . . . . . . . 1 . . . . . . . . . . . . . Damage (minor) 2 | . . . . . . . 1 . . . . . . . . . . . . 1 Damage (major) 5 | . . . . . . . 4 . . . . . . . . . . . . 1 Siege Activations . | . . . . . . . . . . . . . . . . . . . . . Martial Activations . | . . . . . . . . . . . . . . . . . . . . . Shielding Activations . | . . . . . . . . . . . . . . . . . . . . . Robots Disrupted 2 | . . . . . . . . 1 . . . . . . . . . . . 1 Combat Hostiles 2 | . . . . . . . . 1 . . . . . . . . . . . 1 Robots Corrupted 27 | . . . 3 . . . 7 . . . . 1 . 1 . 8 5 1 1 . Combat Hostiles 14 | . . . 2 . . . 4 . . . . . . 1 . 4 2 1 . . Parts Fried 49 | . 1 1 7 1 . . 20 . . . . 2 . . . 11 5 1 . . Impact Corruptions 43 | . . . . . . . 2 . . . . 2 . 1 . 24 9 3 1 1 Robots Melted 1 | . . . . . . . 1 . . . . . . . . . . . . . Combat Hostiles 1 | . . . . . . . 1 . . . . . . . . . . . . . Parts Melted 9 | . 4 . . . . . 5 . . . . . . . . . . . . . Heat Transferred 5659 | 400 1308 . 500 200 . 592 2448 50 . . . . . 87 . . . . . 74 Parts Sabotaged . | . . . . . . . . . . . . . . . . . . . . . Parts Stolen . | . . . . . . . . . . . . . . . . . . . . . Parts Stripped . | . . . . . . . . . . . . . . . . . . . . . Power Chain Reactions 23 | . 1 . 9 2 . . 6 1 . . . . . 1 . . 1 . . 2 Alert | -11 -10 -10 -9 -9 -9 -8 -8 -7 -7 -7 -7 -6 -6 -6 -6 -5 -4 -3 -2 -1 ------- Run | Yrd Mat Min Mat Min Exi Min Mat Fac Low Low Dat Pro Fac Low Low Fac Fac Res Res Acc Maximum Alert Level 3 | . . . 2 1 . . 3 1 . . . . . . . . 1 . . 2 Low Security (%) 73 | 100 100 100 38 50 . 100 49 66 . . . . 100 . . 100 98 100 100 93 Level 1 16 | . . . 27 49 . . 25 33 . . . . . . . . 1 . . 4 Level 2 8 | . . . 33 . . . 20 . . . . . . . . . . . . 1 Level 3 1 | . . . . . . . 4 . . . . . . . . . . . . . Level 4 . | . . . . . . . . . . . . . . . . . . . . . Level 5 . | . . . . . . . . . . . . . . . . . . . . . High Security . | . . . . . . . . . . . . . . . . . . . . . Max Security . | . . . . . . . . . . . . . . . . . . . . . Peak Influence 700 | 5 92 50 549 253 . 62 700 318 . . . . 15 . . 51 219 180 59 479 Initial 318 | . . 14 . 205 . . . 318 . . . . . . . . 1 114 59 1 Average 126 | 1 31 4 261 193 . 8 243 119 . . . . 1 . . 12 78 128 18 34 Influence Increases 6220 | 45 428 60 1005 176 . 72 1302 702 100 40 . 65 45 65 . 455 589 132 101 838 Destroy 0b10 Robot/C 2600 | . 300 40 580 100 . 60 640 300 80 40 . 60 . 40 . 140 140 20 . 60 Destroy 0b10 Robot/NC 340 | 45 25 10 85 . . . 60 30 . . . 5 . . . 20 35 10 5 10 Destroy Leader 640 | . 58 10 156 10 . 10 166 120 20 . . . . 10 . 58 16 4 2 . Successful Hack 512 | . 25 . 44 . . . 54 93 . . . . 30 . . 114 14 98 40 . Disable Machine 315 | . . . 30 . . . 105 105 . . . . 15 . . 15 15 . . 30 Destroy Structure 913 | . 5 . 80 66 . 2 112 39 . . . . . . . 48 144 . 39 378 Partial Spotted 105 | . . . . . . . . . . . . . . . . 60 15 . . 30 Lose Combat Pursuer 795 | . 15 . 30 . . . 165 15 . . . . . 15 . . 210 . 15 330 Influence Decreases 5751 | 45 390 98 477 533 171 72 602 1089 413 40 . 65 33 77 . 452 373 245 204 372 Entered New Map 1177 | . . 24 . 323 171 . . 382 116 . . . . 5 . . 2 105 47 2 Time Decay 4100 | 45 380 74 477 190 . 72 572 579 257 30 . 65 33 72 . 422 331 120 157 224 Lost Part 346 | . 10 . . 20 . . 10 50 40 10 . . . . . 20 40 20 . 126 Lost Ally 70 | . . . . . . . 20 20 . . . . . . . 10 . . . 20 Purge Threat 58 | . . . . . . . . 58 . . . . . . . . . . . . Squads Dispatched 48 | . 2 . 2 . . . 3 12 . . . . 4 . . 9 6 1 1 8 Investigation 12 | . 1 . 1 . . . 1 3 . . . . 2 . . 3 . . . 1 Extermination 25 | . . . . . . . . 8 . . . . 2 . . 5 3 1 1 5 Reinforcement 9 | . 1 . 1 . . . 1 1 . . . . . . . 1 3 . . 1 Assault 1 | . . . . . . . 1 . . . . . . . . . . . . . Garrison 1 | . . . . . . . . . . . . . . . . . . . . 1 Intercept . | . . . . . . . . . . . . . . . . . . . . . Searches Triggered . | . . . . . . . . . . . . . . . . . . . . . Construction Impeded . | . . . . . . . . . . . . . . . . . . . . . Haulers Reinforced 1 | . . . . . . . . . . . . . . . . . 1 . . . Active Scanning Responses . | . . . . . . . . . . . . . . . . . . . . . Cargo Convoy Interrupts . | . . . . . . . . . . . . . . . . . . . . . Stealth | -11 -10 -10 -9 -9 -9 -8 -8 -7 -7 -7 -7 -6 -6 -6 -6 -5 -4 -3 -2 -1 --------- Run | Yrd Mat Min Mat Min Exi Min Mat Fac Low Low Dat Pro Fac Low Low Fac Fac Res Res Acc Distress Signals 18 | . 4 . 3 . . . 5 2 . . . . . . . 1 2 . . 1 Communications Jammed . | . . . . . . . . . . . . . . . . . . . . . Distress Signals . | . . . . . . . . . . . . . . . . . . . . . Times Spotted 279 | . 27 2 39 5 . 3 59 21 16 3 . 3 6 7 2 17 18 2 2 47 Peak Tracking Total 16 | . 5 2 4 2 . 3 6 5 7 3 . 3 2 3 2 2 11 1 1 16 Tactical Retreats 34 | . 1 . 2 . . . 10 1 3 . . . 1 2 . 1 5 . 1 7 ECM-based Alert Blocks 8 | . . . . . . . . . . . . . 1 3 . 1 3 . . . Traps | -11 -10 -10 -9 -9 -9 -8 -8 -7 -7 -7 -7 -6 -6 -6 -6 -5 -4 -3 -2 -1 ------- Run | Yrd Mat Min Mat Min Exi Min Mat Fac Low Low Dat Pro Fac Low Low Fac Fac Res Res Acc Traps Triggered 14 | . 2 . . . . . 2 1 1 . . . 2 . . 1 2 . 1 2 Indirectly . | . . . . . . . . . . . . . . . . . . . . . Trap Hack Attempts . | . . . . . . . . . . . . . . . . . . . . . Triggered . | . . . . . . . . . . . . . . . . . . . . . Disarmed . | . . . . . . . . . . . . . . . . . . . . . Reprogrammed . | . . . . . . . . . . . . . . . . . . . . . Reused . | . . . . . . . . . . . . . . . . . . . . . Traps Extracted . | . . . . . . . . . . . . . . . . . . . . . Installed . | . . . . . . . . . . . . . . . . . . . . . Triggered . | . . . . . . . . . . . . . . . . . . . . . Machines | -11 -10 -10 -9 -9 -9 -8 -8 -7 -7 -7 -7 -6 -6 -6 -6 -5 -4 -3 -2 -1 ---------- Run | Yrd Mat Min Mat Min Exi Min Mat Fac Low Low Dat Pro Fac Low Low Fac Fac Res Res Acc Machines Disabled 25 | . 1 . 2 2 . . 7 7 . . . . 1 1 . 1 1 . . 2 Max in Single Turn 3 | . 1 . 1 2 . . 3 3 . . . . 1 1 . 1 1 . . 1 Garrison Access 4 | . . . . . . . 1 1 . . . . 1 . . . . 1 . . Energy Cycler 1 | . . . . . . . . . . . . . . . . . . . . 1 Machines Repaired . | . . . . . . . . . . . . . . . . . . . . . Machines Dismantled . | . . . . . . . . . . . . . . . . . . . . . Machines Sabotaged . | . . . . . . . . . . . . . . . . . . . . . Overloaded Fab Kills . | . . . . . . . . . . . . . . . . . . . . . Hacking | -11 -10 -10 -9 -9 -9 -8 -8 -7 -7 -7 -7 -6 -6 -6 -6 -5 -4 -3 -2 -1 --------- Run | Yrd Mat Min Mat Min Exi Min Mat Fac Low Low Dat Pro Fac Low Low Fac Fac Res Res Acc Machines Accessed 108 | . 9 . 11 1 1 . 16 22 1 . 4 . 6 1 . 21 1 7 5 2 Terminals 61 | . 6 . 8 1 . . 10 13 . . . . 2 . . 11 . 4 5 1 Fabricators 6 | . . . . . . . . 3 . . . . 2 . . 1 . . . . Repair Stations 10 | . 1 . 1 . . . 1 2 . . . . 1 . . 3 . . . 1 Recycling Units 12 | . 2 . 1 . . . 2 3 . . . . . . . 2 1 1 . . Scanalyzers 7 | . . . 1 . . . 2 . . . . . . . . 3 . 1 . . Garrison Access 5 | . . . . . . . 1 1 . . . . 1 . . 1 . 1 . . Total Hacks 397 | . 27 . 44 2 1 . 61 108 1 . 31 . 12 1 . 68 2 23 12 4 Successful 263 | . 14 . 28 1 1 . 39 75 1 . 31 . 5 1 . 39 2 17 7 2 Failed 129 | . 13 . 15 1 . . 21 32 . . . . 7 . . 28 . 6 4 2 Catastrophic 13 | . 1 . 1 . . . 2 4 . . . . 1 . . 2 . 1 . 1 Database Lockouts 5 | . . . 1 . . . 1 1 . . . . . . . 1 . . 1 . Manual 184 | . 14 . 32 2 1 . 34 53 . . . . 4 . . 29 2 6 5 2 Terminals 220 | . 17 . 33 2 . . 34 63 . . . . 3 . . 35 . 18 12 3 Fabricators 15 | . . . . . . . . 8 . . . . 5 . . 2 . . . . Repair Stations 48 | . 3 . 5 . . . 5 24 . . . . 2 . . 8 . . . 1 Recycling Units 38 | . 7 . 4 . . . 8 11 . . . . . . . 5 2 1 . . Scanalyzers 33 | . . . 2 . . . 11 . . . . . . . . 17 . 3 . . Garrison Access 9 | . . . . . . . 3 2 . . . . 2 . . 1 . 1 . . Terminal Hacks 100 | . 4 . 9 . 1 . 4 24 1 . 31 . 1 1 . 7 . 8 7 2 Record 25 | . . . . . . . . 1 . . 11 . . . . . . 8 3 2 Part Schematic 15 | . . . . . . . 1 4 . . 10 . . . . . . . . . Robot Schematic 8 | . . . . . . . . 1 . . 7 . . . . . . . . . Robot Analysis 6 | . 1 . 2 . . . 1 2 . . . . . . . . . . . . Prototype ID Bank 7 | . 1 . 1 . . . . 1 . . 3 . . . . 1 . . . . Open Door 2 | . . . . . . . . . 1 . . . . 1 . . . . . . Open DSF 4 | . . . . . . . . 1 . . . . 1 . . 2 . . . . Level Access Points 1 | . . . . . . . . . . . . . . . . . . . 1 . Branch Access Points 4 | . 1 . 1 . . . . 1 . . . . . . . 1 . . . . Emergency Access Points 2 | . . . 1 . . . . 1 . . . . . . . . . . . . Terminal Index 4 | . . . 1 . . . . 1 . . . . . . . 1 . . 1 . Fabricator Index 1 | . . . . . . . . 1 . . . . . . . . . . . . Repair Station Index 2 | . . . . . . . . 1 . . . . . . . 1 . . . . Recycling Unit Index 2 | . 1 . . . . . . 1 . . . . . . . . . . . . Garrison Index 1 | . . . . . . . . . . . . . . . . . . . 1 . Alert Level 3 | . . . 1 . . . 1 1 . . . . . . . . . . . . Unreport Threat 1 | . . . . . . . . 1 . . . . . . . . . . . . Locate Traps 4 | . . . 1 . . . . 2 . . . . . . . . . . 1 . Investigation Status 1 | . . . . . . . . 1 . . . . . . . . . . . . Recall Investigation 1 | . . . . . . . 1 . . . . . . . . . . . . . Recall Extermination 1 | . . . . . . . . 1 . . . . . . . . . . . . Hauler Manifests 2 | . . . 1 . . . . 1 . . . . . . . . . . . . Zone Layout 2 | . . . . . . . . 1 . . . . . . . 1 . . . . Proto ID Catalog 1 | . . . . . 1 . . . . . . . . . . . . . . . Fabricator Hacks 10 | . . . . . . . . 6 . . . . 2 . . 2 . . . . Load Schematic 5 | . . . . . . . . 3 . . . . 1 . . 1 . . . . Build 5 | . . . . . . . . 3 . . . . 1 . . 1 . . . . Repair Station Hacks 40 | . 1 . 4 . . . 4 24 . . . . 1 . . 6 . . . . Scan Component 21 | . 1 . 2 . . . 2 12 . . . . . . . 4 . . . . Repair 18 | . . . 2 . . . 2 12 . . . . . . . 2 . . . . Refit 1 | . . . . . . . . . . . . . 1 . . . . . . . Recycling Unit Hacks 10 | . 2 . 2 . . . 4 . . . . . . . . 1 . 1 . . Report Inventory 7 | . 2 . 1 . . . 2 . . . . . . . . 1 . 1 . . Retrieve Components 3 | . . . 1 . . . 2 . . . . . . . . . . . . . Scanalyzer 27 | . . . 2 . . . 10 . . . . . . . . 12 . 3 . . Insert Component 9 | . . . 1 . . . 4 . . . . . . . . 3 . 1 . . Analyze 9 | . . . 1 . . . 4 . . . . . . . . 3 . 1 . . Retrieve Study 9 | . . . . . . . 2 . . . . . . . . 6 . 1 . . Garrison Access Hacks 4 | . . . . . . . 1 1 . . . . 1 . . . . 1 . . Seal Access 4 | . . . . . . . 1 1 . . . . 1 . . . . 1 . . Unauthorized Hacks 72 | . 7 . 11 1 . . 16 20 . . . . . . . 11 2 4 . . Terminals 60 | . 3 . 11 1 . . 14 16 . . . . . . . 11 . 4 . . Assimilate 9 | . . . . . . . 3 2 . . . . . . . 4 . . . . Botnet 29 | . 3 . 6 . . . 6 7 . . . . . . . 5 . 2 . . Skim 22 | . . . 5 1 . . 5 7 . . . . . . . 2 . 2 . . Fabricators . | . . . . . . . . . . . . . . . . . . . . . Repair Stations . | . . . . . . . . . . . . . . . . . . . . . Recycling Units 12 | . 4 . . . . . 2 4 . . . . . . . . 2 . . . Reject 5 | . 2 . . . . . 1 1 . . . . . . . . 1 . . . Mask 7 | . 2 . . . . . 1 3 . . . . . . . . 1 . . . Scanalyzers . | . . . . . . . . . . . . . . . . . . . . . Garrison Access . | . . . . . . . . . . . . . . . . . . . . . Data Cores Recovered . | . . . . . . . . . . . . . . . . . . . . . Used . | . . . . . . . . . . . . . . . . . . . . . Hacking Detections 86 | . 8 . 11 1 . . 13 20 . . . . 5 . . 15 1 6 4 2 Full Trace Events 9 | . 1 . 1 . . . 2 3 . . . . 1 . . 1 . . . . Feedback Events 1 | . . . 1 . . . . . . . . . . . . . . . . . Corruption 1 | . . . 1 . . . . . . . . . . . . . . . . . Feedback Blocked . | . . . . . . . . . . . . . . . . . . . . . Robot Schematics Acquired 8 | . . . . . . . . 1 . . 7 . . . . . . . . . Robots Built . | . . . . . . . . . . . . . . . . . . . . . Authchips . | . . . . . . . . . . . . . . . . . . . . . Time . | . . . . . . . . . . . . . . . . . . . . . Total Robot Build Rating . | . . . . . . . . . . . . . . . . . . . . . Part Schematics Acquired 20 | . . . 1 . . . 3 4 . . 10 . . . . 1 . 1 . . Parts Built 4 | . . . . . . . . 3 . . . . . . . 1 . . . . Authchips . | . . . . . . . . . . . . . . . . . . . . . Time 320 | . . . . . . . . 208 . . . . 36 . . 76 . . . . Total Part Build Rating 13 | . . . . . . . . 8 . . . . . . . 5 . . . . Part Studies Acquired 8 | . . . . . . . 1 . . . . . . . . 6 . 1 . . Parts Repaired 18 | . . . 2 . . . 2 12 . . . . . . . 2 . . . . Time 640 | . . . 64 . . . 58 460 . . . . . . . 58 . . . . Parts Recycled . | . . . . . . . . . . . . . . . . . . . . . Recycled Matter . | . . . . . . . . . . . . . . . . . . . . . Retrieved Matter . | . . . . . . . . . . . . . . . . . . . . . Retrieved Components 25 | . . . 9 . . . 16 . . . . . . . . . . . . . Parts Scanalyzed 6 | . . . 1 . . . 3 . . . . . . . . 1 . 1 . . Part Schematics Acquired 6 | . . . 1 . . . 3 . . . . . . . . 1 . 1 . . Parts Damaged . | . . . . . . . . . . . . . . . . . . . . . Bothacking | -11 -10 -10 -9 -9 -9 -8 -8 -7 -7 -7 -7 -6 -6 -6 -6 -5 -4 -3 -2 -1 ------------ Run | Yrd Mat Min Mat Min Exi Min Mat Fac Low Low Dat Pro Fac Low Low Fac Fac Res Res Acc Used RIF Installer . | . . . . . . . . . . . . . . . . . . . . . Robots Hacked 12 | . . . 3 . . . 8 1 . . . . . . . . . . . . Non-combat 11 | . . . 3 . . . 8 . . . . . . . . . . . . . Combat 1 | . . . . . . . . 1 . . . . . . . . . . . . Robot Hacks Applied 17 | . . . 6 . . . 10 1 . . . . . . . . . . . . parse_system 3 | . . . 2 . . . . 1 . . . . . . . . . . . . no_distress 8 | . . . 3 . . . 5 . . . . . . . . . . . . . find_recycling 1 | . . . . . . . 1 . . . . . . . . . . . . . find_station 4 | . . . 1 . . . 3 . . . . . . . . . . . . . check_alert 1 | . . . . . . . 1 . . . . . . . . . . . . . Relay Couplers Released . | . . . . . . . . . . . . . . . . . . . . . Fabnet Peak Effective % . | . . . . . . . . . . . . . . . . . . . . . Robots Rewired . | . . . . . . . . . . . . . . . . . . . . . Allies Hacked . | . . . . . . . . . . . . . . . . . . . . . Hacks Repelled . | . . . . . . . . . . . . . . . . . . . . . Allies | -11 -10 -10 -9 -9 -9 -8 -8 -7 -7 -7 -7 -6 -6 -6 -6 -5 -4 -3 -2 -1 -------- Run | Yrd Mat Min Mat Min Exi Min Mat Fac Low Low Dat Pro Fac Low Low Fac Fac Res Res Acc Total Allies 7 | . . 1 . . . . 2 2 . . . . . . . 2 . . . . Largest Group 1 | . . 1 . . . . 1 1 . . . . . . . 1 . . . . Highest-Rated Group 31 | . . 31 . . . . 26 26 . . . . . . . 26 . . . . Highest-Rated Ally 31 | . . 31 . . . . 26 26 . . . . . . . 26 . . . . Total Orders 15 | . . . . . . . 1 7 . . . . . . . 5 . . . 2 STAY 6 | . . . . . . . . 4 . . . . . . . 2 . . . . FOLLOW 5 | . . . . . . . 1 3 . . . . . . . 1 . . . . EXPLORE 4 | . . . . . . . . . . . . . . . . 2 . . . 2 Ally Attacks . | . . . . . . . . . . . . . . . . . . . . . Total Damage . | . . . . . . . . . . . . . . . . . . . . . Kills . | . . . . . . . . . . . . . . . . . . . . . Allies Corrupted 1 | . . . . . . . . . . . . . . . . 1 . . . . Allies Melted 1 | . . . . . . . . . . . . . . 1 . . . . . . Intel | -11 -10 -10 -9 -9 -9 -8 -8 -7 -7 -7 -7 -6 -6 -6 -6 -5 -4 -3 -2 -1 ------- Run | Yrd Mat Min Mat Min Exi Min Mat Fac Low Low Dat Pro Fac Low Low Fac Fac Res Res Acc Active Infowar (turns) 13254 | 236 1359 869 1505 387 1005 521 5984 447 . . . . 242 193 147 312 23 . 1 23 Optics 2716 | . 1100 869 163 . . . . . . . . . 240 193 147 4 . . . . Traps 2 | . . . . . . . . . . . . . . . . 2 . . . . Seismic 495 | 236 259 . . . . . . . . . . . . . . . . . . . T.N.C. 9848 | . . . 1504 387 1005 521 5984 447 . . . . . . . . . . . . Cloaking 249 | . . . . . . . . . . . . . . 2 . 247 . . . . Jamming 20 | . . . . . . . . . . . . . . . . 20 . . . . ECM 153 | . . . . . . . . . . . . . 14 22 16 54 23 . 1 23 Robot Analysis Total 6 | . 1 . 2 . . . 1 2 . . . . . . . . . . . . Derelict Logs Recovered 6 | . . 2 . . . . . . 2 . . 1 . . 1 . . . . . Drone Launches 4 | . . . . . . . . . . . . . . . . 2 . . . 2 Drone Recoveries . | . . . . . . . . . . . . . . . . . . . . . Exploration | -11 -10 -10 -9 -9 -9 -8 -8 -7 -7 -7 -7 -6 -6 -6 -6 -5 -4 -3 -2 -1 ------------- Run | Yrd Mat Min Mat Min Exi Min Mat Fac Low Low Dat Pro Fac Low Low Fac Fac Res Res Acc Turns Passed 25257 | 381 1359 869 1505 387 1005 521 6001 3728 987 1191 143 886 517 193 147 2370 870 259 404 1534 Spaces Moved 16069 | 160 604 499 651 197 624 153 2076 1547 530 687 88 532 428 415 413 2594 1186 616 603 1466 Core 19 | 4 . . . . . . . . . . . . . . . . . . . 15 Treads 8359 | 156 604 499 651 197 624 153 2076 1547 530 687 88 532 15 . . . . . . . Legs . | . . . . . . . . . . . . . . . . . . . . . Wheels . | . . . . . . . . . . . . . . . . . . . . . Hover 4 | . . . . . . . . . . . . . . . . . . . . 4 Flight 7687 | . . . . . . . . . . . . . 413 415 413 2594 1186 616 603 1447 Fastest Speed 17 | 50 160 160 160 160 160 160 158 158 161 161 161 161 31 31 31 24 20 20 20 17 Average Speed 95 | 157 160 160 160 160 160 160 159 162 163 165 161 161 35 31 31 25 22 24 20 20 Slowest Speed 243 | 160 160 160 160 160 160 160 162 243 170 237 161 161 161 31 31 29 32 46 20 60 Overloaded Moves . | . . . . . . . . . . . . . . . . . . . . . Propulsion Burnouts . | . . . . . . . . . . . . . . . . . . . . . Robots Hopped 27 | . . . . . . . . . . . . . 2 1 1 6 8 2 . 7 Potential Cave-ins 1 | . . . . . . . . . . . . . . . . . . . . 1 Cave-ins Triggered . | . . . . . . . . . . . . . . . . . . . . . Exploration Rate (%) 51 | 6 88 95 69 36 92 28 94 45 59 78 73 69 10 60 42 47 24 16 17 23 Regions Visited 20 Branch Regions 10 Pre-discovered Areas 8 | . . . 2 . . . 1 2 1 . 1 . . . 1 . . . . . Known Exits Taken 8 | . 1 . 1 . . 1 1 1 1 . . 1 . . . . . . 1 . Unknown Exits Taken 12 | 1 . 1 . 1 1 . . . . 1 1 . 1 1 1 1 1 1 . . Scrap Searched 16 | . . 1 . . . . . . 1 8 . 3 . 2 1 . . . . . Spaces Dug 103 | . . . . 1 . . 13 16 2 3 . 2 . . . 24 15 . 13 14 Terrain Destroyed 798 | . 2 . 86 103 . 2 154 37 2 3 . 36 . 8 . 24 101 . 13 227 Melee 102 | . . . . 1 . . 13 16 2 3 . 2 . . . 24 15 . 13 13 Projectile 15 | . . . . . . 2 10 . . . . 1 . . . . . . . 2 AOE 681 | . 2 . 86 102 . . 131 21 . . . 33 . 8 . . 86 . . 212 Terrain Rammed . | . . . . . . . . . . . . . . . . . . . . . Walls Destroyed . | . . . . . . . . . . . . . . . . . . . . . Machines Disabled . | . . . . . . . . . . . . . . . . . . . . . Actions | -11 -10 -10 -9 -9 -9 -8 -8 -7 -7 -7 -7 -6 -6 -6 -6 -5 -4 -3 -2 -1 --------- Run | Yrd Mat Min Mat Min Exi Min Mat Fac Low Low Dat Pro Fac Low Low Fac Fac Res Res Acc Total 24943 | 238 894 554 982 234 631 428 4644 2611 599 724 90 548 795 473 430 4176 1685 709 856 2642 Wait 7553 | 40 165 42 206 11 . 271 2281 885 24 18 . 3 337 36 19 1428 393 61 215 1118 Move 15995 | 159 603 498 650 196 623 152 2075 1546 529 686 87 531 423 412 410 2581 1169 611 602 1452 Hop 27 | . . . . . . . . . . . . . 2 1 1 6 8 2 . 7 Pick Up 169 | 8 22 2 9 . 3 1 36 25 2 4 1 2 2 3 . 19 12 8 8 2 Fast Attach 97 | 7 4 . 3 . . 1 15 15 2 3 . . 2 2 . 20 12 6 . 5 Attach 90 | . 1 . 2 2 1 . 18 10 5 . 1 2 10 5 . 7 8 3 4 11 Detach 32 | . . . . . . . 10 3 . . . . 5 6 . 2 2 . . 4 Swap 173 | . 12 2 21 10 2 2 58 27 5 . . 3 1 . . 9 6 2 3 10 Drop 219 | . 25 2 13 . 2 1 58 19 4 3 1 . 12 4 . 33 24 10 5 3 Fire 263 | 24 60 8 67 12 . . 47 20 1 3 . 4 . 2 . . 5 . . 10 Melee 290 | . . . 10 3 . . 42 61 27 7 . 3 1 2 . 56 41 6 15 16 Ram . | . . . . . . . . . . . . . . . . . . . . . Kick . | . . . . . . . . . . . . . . . . . . . . . Crush 7 | . 2 . 1 . . . 4 . . . . . . . . . . . . . Escape Stasis 27 | . . . . . . . . . . . . . . . . 15 4 . 4 4 Rewire 1 | . . . . . . . . . . . . . . . . . 1 . . . Trap . | . . . . . . . . . . . . . . . . . . . . . Miscellaneous . | . . . . . . . . . . . . . . . . . . . . . Route ------- -11/Scrapyard -10/Materials (discovered 6 exits: *Mat x3 / *Min x2 / [*Sub]) -10/Mines (discovered 2 exits: *Mat x2) -9/Materials (discovered 5 exits: *Mat x3 / *Min x2) -9/Mines (discovered 3 exits: *Mat x2 / *Exi) -9/Exiles (discovered 2 exits: [*Min x2]) -8/Mines -8/Materials (discovered 3 exits: *Fac x3) -7/Factory (discovered 6 exits: *Fac x3 / Sto / *Low x2) -7/Lower Caves -7/Lower Caves (discovered 2 exits: *Fac / *Dat) -7/Data Miner -6/Proximity Caves -6/Factory -6/Lower Caves -6/Lower Caves -5/Factory (discovered 4 exits: *Fac x3 / Upp) -4/Factory -3/Research -2/Research -1/Access History --------- Turn | Location | Event 12 | -11/Scrapyard | Discovered new exit (range 15) 382 | -11/Scrapyard | Entered Materials 383 | -10/Materials | Build established: Mutant 646 | -10/Materials | Discovered new exit (range 9) 875 | -10/Materials | Core integrity fell below 50% 1070 | -10/Materials | Discovered new exit (range 18) 1075 | -10/Materials | Identified exit to Mines 1238 | -10/Materials | Discovered new exit (range 10) 1250 | -10/Materials | Discovered new exit (range 6) 1533 | -10/Materials | Discovered new exit (range 16) 1741 | -10/Materials | Entered Mines 1895 | -10/Mines | Found a hidden stash of uninstalled traps 1917 | -10/Mines | Received a Mining Laser from a helpful Derelict 2007 | -10/Mines | Discovered new exit (range 6) 2330 | -10/Mines | Learned 2 Materials zone layouts 2347 | -10/Mines | Received a Rocket Launcher from a helpful Derelict 2603 | -10/Mines | Discovered new exit (range 5) 2610 | -10/Mines | Entered Materials 2610 | -9/Materials | Evolved 2 slots: Propulsion x1, Utility x1 3169 | -9/Materials | Discovered new exit (range 3) 3406 | -9/Materials | Discovered new exit (range 11) 3470 | -9/Materials | Discovered new exit (range 10) 3713 | -9/Materials | Repaired Imp. Treads 3746 | -9/Materials | Repaired Imp. Treads 3823 | -9/Materials | Identified exit to Mines 3823 | -9/Materials | Central database locked down 3872 | -9/Materials | Identified exit to Materials 3910 | -9/Materials | Loaded intel: 16 trap records 3940 | -9/Materials | Learned location of 1 exit from Storage 3965 | -9/Materials | Learned location of Mines (-9) 3966 | -9/Materials | Learned Storage terminal intel 3973 | -9/Materials | Learned location of Recycling (-7) 3988 | -9/Materials | Learned location of 1 exit from Storage 4115 | -9/Materials | Entered Mines 4212 | -9/Mines | Assembled infested the area 4370 | -9/Mines | Discovered new exit (range 2) 4385 | -9/Mines | Deemed a non-threat by the Exiles lab entrance 4502 | -9/Mines | Entered Exiles 4529 | -9/Exiles | Discovered new exit (range 14) 4560 | -9/Exiles | Met 8R-AWN 4582 | -9/Exiles | Met EX-HEX 4664 | -9/Exiles | Met EX-DEC 4690 | -9/Exiles | Visited The Gauntlet 4929 | -9/Exiles | Met EX-BIN 5128 | -9/Exiles | Discovered new exit (range 12) 5265 | -9/Exiles | Aligned with FarCom system 5267 | -9/Exiles | Given EX-Vault access code 5334 | -9/Exiles | Opened EX-Vault 5347 | -9/Exiles | Found AWS/Thermal 5387 | -9/Exiles | Warned to stay clear of 0b10 Research branches 5507 | -9/Exiles | Left Exiles lab with AWS/Thermal 5507 | -9/Exiles | Entered Mines 5513 | -8/Mines | Core integrity fell below 50% 5579 | -8/Mines | Discovered exit to Materials (range 6) 5806 | -8/Mines | Build established: Scavenger-Mutant 6028 | -8/Mines | Entered Materials 6028 | -8/Materials | Evolved 2 slots: Propulsion x1, Utility x1 6394 | -8/Materials | Repaired Imp. Treads 6422 | -8/Materials | Repaired Lgt. Treads 6733 | -8/Materials | Build established: Mutant 7142 | -8/Materials | Discovered new exit (range 10) 8590 | -8/Materials | AWS/Thermal suddenly broke down 8924 | -8/Materials | Learned Factory recycling unit intel 8949 | -8/Materials | Learned 4 Recycling zone layouts 8964 | -8/Materials | Learned Storage emergency access door positions 8969 | -8/Materials | Learned location of 1 exit from Storage 8970 | -8/Materials | Learned Storage emergency access door positions 8971 | -8/Materials | Learned 4 Factory zone layouts 8972 | -8/Materials | Learned Storage emergency access door positions 8982 | -8/Materials | Identified exit to Factory 9271 | -8/Materials | Build established: Scavenger-Mutant 10592 | -8/Materials | Build established: Mutant 10614 | -8/Materials | Central database locked down 11628 | -8/Materials | First assault squad dispatched 12029 | -8/Materials | Entered Factory 12029 | -7/Factory | Evolved 2 slots: Propulsion x1, Utility x1 12030 | -7/Factory | Identified exit to Storage 12030 | -7/Factory | Identified exit to Lower Caves 12031 | -7/Factory | Identified exit to Factory 12032 | -7/Factory | Loaded intel: 6 recycling unit locations 12330 | -7/Factory | Build established: Scavenger-Mutant 13062 | -7/Factory | Watched by a mysterious "MATRIX" hacker 13250 | -7/Factory | Fabricated Imp. Flight Unit? 13288 | -7/Factory | Repaired Corrupted Hacking Suite 13328 | -7/Factory | Repaired Deuterium Engine 13362 | -7/Factory | Repaired Hrd. Light Armor Plating 13401 | -7/Factory | Repaired Arm. Treads 13429 | -7/Factory | Repaired Lgt. Treads 13456 | -7/Factory | Repaired Lgt. Treads 13496 | -7/Factory | Repaired Adv. Treads 13802 | -7/Factory | Build established: Hacker-Mutant 14511 | -7/Factory | Learned 4 Factory zone layouts 14571 | -7/Factory | Learned location of 1 exit from Upper Caves 14620 | -7/Factory | Learned 2 Lower Caves zone layouts 14659 | -7/Factory | Learned location of 2 exits from Proximity Caves 14708 | -7/Factory | Learned location of Lower Caves (-7) 14729 | -7/Factory | Fabricated Hacking Suite (x1) 14730 | -7/Factory | Learned Hub_04(d) stockpile data 14743 | -7/Factory | Discovered exit to Factory (range 15) 14757 | -7/Factory | Learned Extension emergency access door positions 14793 | -7/Factory | Learned location of 1 exit from Proximity Caves 14827 | -7/Factory | Repaired Arm. Treads 14872 | -7/Factory | Repaired Great Axe 14924 | -7/Factory | Repaired Imp. EM Shotgun 14963 | -7/Factory | Repaired Shock Rifle 15004 | -7/Factory | Repaired Imp. Grenade Launcher 15036 | -7/Factory | Central database locked down 15190 | -7/Factory | Discovered exit to Factory (range 15) 15407 | -7/Factory | Fabricated Hacking Suite (x1) 15757 | -7/Factory | Entered Lower Caves 15798 | -7/Lower Caves | Spotted B-75 Beast 15880 | -7/Lower Caves | Identified exit to Lower Caves 15890 | -7/Lower Caves | Learned location of Zion (-6) 15991 | -7/Lower Caves | Ambushed by wild Derelicts 16721 | -7/Lower Caves | Attracted the attention of an 0b10 checkpoint 16744 | -7/Lower Caves | Entered another Lower Caves area 16938 | -7/Lower Caves | Discovered exit to Factory (range 9) 17316 | -7/Lower Caves | Encountered a Warlord checkpoint 17461 | -7/Lower Caves | Attracted the attention of an 0b10 checkpoint 17535 | -7/Lower Caves | Lost 3 parts (2n1u) 17560 | -7/Lower Caves | Lost 3 allies 17804 | -7/Lower Caves | Build established: Mutant 17830 | -7/Lower Caves | Discovered new exit (range 13) 17935 | -7/Lower Caves | Entered Data Miner 17935 | -7/Data Miner | Discovered new exit (range 6) 17966 | -7/Data Miner | Met Data Miner 18010 | -7/Data Miner | Learned location of Section 7 (-2) 18010 | -7/Data Miner | Acquired the access code to Warlord's prototype stash 18039 | -7/Data Miner | Received God Mode back door access code from Data Miner 18078 | -7/Data Miner | Entered Proximity Caves 18424 | -6/Proximity Caves | Build established: Scavenger-Mutant 18499 | -6/Proximity Caves | Learned Factory terminal intel 18553 | -6/Proximity Caves | Attracted the attention of an 0b10 checkpoint 18964 | -6/Proximity Caves | Entered Factory 18964 | -6/Factory | Evolved 2 slots: Utility x2 18966 | -6/Factory | Loaded intel: 28 terminal locations 18977 | -6/Factory | Identified exit to DSF 19254 | -6/Factory | Allied Derelicts emerged from ambush trap array 19281 | -6/Factory | Build established: Hacker-Sprinter 19457 | -6/Factory | Discovered new exit (range 22) 19481 | -6/Factory | Entered Lower Caves 19482 | -6/Lower Caves | Encountered a Warlord checkpoint 19646 | -6/Lower Caves | Discovered new exit (range 10) 19674 | -6/Lower Caves | Entered another Lower Caves area 19675 | -6/Lower Caves | Discovered new exit (range 19) 19821 | -6/Lower Caves | Entered Factory 19821 | -5/Factory | Evolved 2 slots: Propulsion x2 19822 | -5/Factory | Identified exit to Upper Caves 19841 | -5/Factory | Identified exit to DSF 19870 | -5/Factory | Repaired Xenon Bombardment Thruster 20107 | -5/Factory | Discovered new exit (range 4) 20179 | -5/Factory | Build established: Derelict-Sprinter 21003 | -5/Factory | Build established: Hacker-Sprinter 21232 | -5/Factory | Targeted by mysterious "MATRIX" hacker 21283 | -5/Factory | Discovered new exit (range 30) 21537 | -5/Factory | Repaired Xenon Bombardment Thruster+ 21730 | -5/Factory | Fabricated Lgt. Regenerative Plating? 21874 | -5/Factory | Central database locked down 22179 | -5/Factory | Discovered new exit (range 13) 22191 | -5/Factory | Entered another Factory area 22191 | -4/Factory | Evolved 2 slots: Propulsion x2 22988 | -4/Factory | Lost 4 parts (1p3n) 23017 | -4/Factory | Spotted B-86 Titan 23059 | -4/Factory | Discovered new exit (range 10) 23061 | -4/Factory | Entered Research 23061 | -3/Research | Evolved 2 slots: Power x1, Propulsion x1 23307 | -3/Research | Discovered new exit (range 15) 23320 | -3/Research | Entered another Research area 23320 | -2/Research | Evolved 2 slots: Propulsion x1, Utility x1 23529 | -2/Research | Identified exit to Access 23721 | -2/Research | Central database locked down 23724 | -2/Research | Entered Access 23724 | -1/Access | Evolved 2 slots: Propulsion x2 23866 | -1/Access | Spotted CY-PHR 24153 | -1/Access | Garrison activated, responded to threat 24403 | -1/Access | Spotted B-99 Colossus 25099 | -1/Access | Energy Cycler disabled 25130 | -1/Access | Lost 3 parts (1p1n1u) 25158 | -1/Access | Released all parts (15) 25174 | -1/Access | Core integrity fell below 50% 25187 | -1/Access | Lost 6 parts (4n2u) 25224 | -1/Access | System corruption reached 10% 25232 | -1/Access | Core integrity fell below 20% 25258 | -1/Access | Destroyed by S-43 Plague with Heavy Machine Gun Last Messages --------------- 25177_ P-80 Master resets G-73 Enforcer, system corruption cleaned. 25182_ U-05 Engineer lays Concrete. 25183_ ALERT: Hostiles spotted, dispatching reinforcements to Terminal A007. 25194_ System corrupted: IFF burst signal emitted. 25204_ ALERT: Potential suspicious activity detected, Programmers report to Access Zone 7E. 25210_ K-01 Serf destroyed. 25210_ Door malfunctions. 25212_ Acquired 5 matter. 25214_ System corrupted: Energy discharge (-21). 25217_ Acquired 12 matter. 25217_ U-05 Engineer destroyed. 25237_ VP0EYOX22SRV4X06LVP4VKEGX8YC:3RIXFYPY 25248_ Biomechanical Wings destroyed. 25253_ Acquired Imp. Antigrav System. 25256_ Imp. Antigrav System destroyed. Map ----- +----------------------------------------------------+ | # #??? #??????????????????? | | # ## ! " #??????????????????? | | ########## + """?????????????????????? | | ?????????# ## G #??????????????????? | | ?????????# #??? """ #??????????????????? | | ?????????# #????? " ????????????????????? | | ?????????# #??????? #??????????????????? | | ?????????# #????????? #?? ?????????????? | | ?????????# #??????????? #? ???????????? | | ?????????# #?????????? #? /??????????? | | ########## #???????p?? # #??????????? | | # #????????? ? #??????????? | | # ##########p### #??????????? | | # #??????????? | | # ^ #??????????? | | # #??????????? | | + p #??????????? | | # #??????????? | | # #??????????? | | # ps #??????????? | | ##################s#########????????????? | | #???????????# s * #??????????????? | | #???????????# s #??????????????? | | ##########???????????# s #??????????????? | | ?????????????????????# ss #??????????????? | | ?????????????????????# @ss #??????????????? | | ?????????????????????# ""#??????????????? | | ?????????????????????# """#??????????????? | | ?????????????????????# R"#??????????????? | | ?????????????????????# """#??????????????? | | ?????????????????????# ""#??????????????? | | ?????????????????????# #??????????????? | | ?????????????????????# #??????????????? | | ?????????????????????##############??????????????? | | ?????????????????????????????????????????????????? | | ?????????????????????????????????????????????????? | | ?????????????????????????????????????????????????? | | ?????????????????????????????????????????????????? | | ?????????????????????????????????????????????????? | | ?????????????????????????????????????????????????? | | ?????????????????????????????????????????????????? | | ?????????????????????????????????????????????????? | | ?????????????????????????????????????????????????? | | ?????????????????????????????????????????????????? | | ?????????????????????????????????????????????????? | | ?????????????????????????????????????????????????? | | ?????????????????????????????????????????????????? | | | | | | | +----------------------------------------------------+ Best States ------------- Heat Dissipation 52 Coolant Potential 65 Energy Generation 45 Energy Capacity 600 Matter Stores 300 Matter Capacity 300 Sight Range 22 Terrain Scan Density 10 ECM Strength 2 Jamming Range 14 Cloak Strength 3 Corruption Containment 8 Armor Coverage 375 Resistance: KI 20 Resistance: TH 10 Core Shielding 30 Evasion (%) 77 Melee Accuracy 8 Recoil Reduction 5 Offensive Hacking 30 Defensive Hacking 12 Item Schematics ----------------- Hacking Suite | -9/Materials | Scanalyzed Imp. Flight Unit | -8/Materials | Scanalyzed Hvy. Flail | -8/Materials | Scanalyzed System Shield | -8/Materials | Scanalyzed Imp. Light Armor Plating | -7/Factory | Hacked Med. Storage Unit | -7/Factory | Hacked Xenon Bombardment Thruster | -7/Factory | Hacked Gravmag Array | -7/Factory | Hacked Combat Drone Bay | -7/Data Miner | Free Lgt. Regenerative Plating | -7/Data Miner | Free Biomechanical Wings | -7/Data Miner | Free Thermal Defense Suite | -7/Data Miner | Free Imp. Heavy Machine Gun | -7/Data Miner | Free Arm. Medium Treads | -7/Data Miner | Free Adv. Salvage Targeting Computer | -7/Data Miner | Free Enh. Gauss Cannon | -7/Data Miner | Free Imp. Plasma Cutter | -7/Data Miner | Free Graphene Brace | -7/Data Miner | Free Hvy. Missile Launcher | -5/Factory | Scanalyzed Cld. Field Propulsion Drive | -3/Research | Scanalyzed Robot Schematics ------------------ A-02 Transporter | -7/Factory | Hacked C-17 Slicer | -7/Data Miner | Free L-41 Fighter | -7/Data Miner | Free M-22 Extractor | -7/Data Miner | Free H-66 Slayer | -7/Data Miner | Free R-10 Processor | -7/Data Miner | Free P-70 Sage | -7/Data Miner | Free S-27 Virus | -7/Data Miner | Free Fabricated ------------ Imp. Flight Unit | x1 | -7/Factory Hacking Suite | x1 | -7/Factory Hacking Suite | x1 | -7/Factory Lgt. Regenerative Plating | x1 | -5/Factory Repaired ---------- Imp. Treads | 40% | -9/Materials Imp. Treads | 42% | -9/Materials Imp. Treads | 6% | -8/Materials Lgt. Treads | 8% | -8/Materials Hacking Suite | 80% | -7/Factory | Corrupted Deuterium Engine | 36% | -7/Factory Hrd. Light Armor Plating | 40% | -7/Factory Arm. Treads | 22% | -7/Factory Lgt. Treads | 14% | -7/Factory Lgt. Treads | 17% | -7/Factory Adv. Treads | 18% | -7/Factory Arm. Treads | 73% | -7/Factory Great Axe | 65% | -7/Factory Imp. EM Shotgun | 55% | -7/Factory Shock Rifle | 70% | -7/Factory Imp. Grenade Launcher | 21% | -7/Factory Xenon Bombardment Thruster | 13% | -5/Factory Xenon Bombardment Thruster | 26% | -5/Factory Studied --------- Imp. Datajack | -8/Materials | Hacked Field Propulsion Drive | -5/Factory | Hacked Xenon Bombardment Thruster | -5/Factory | Hacked Hvy. Missile Launcher | -5/Factory | Hacked Mic. Fission Core | -5/Factory | Hacked Fission Core | -5/Factory | Hacked Power Maul | -5/Factory | Hacked Particle Reactor | -3/Research | Hacked Alien Tech Used ----------------- None Achievements -------------- Can't Catch Me Dangerous Findings Deadly Force Denied? Drive-By Explorer Explosive Keycard Fancy Inventory Fitting Room Hammer Time Heavy Suspicion Leap Before You Look Maximum Efficiency My Business Is Booming Professional Mechanic Prolific Hacker Recruitment Drive Respectable Loadout Rockin' Loadout The Better Part Of Valor The Oracle Treasure Hunter Challenges ------------ None Game ------ Seed ShieldDefenseStabilizer Manual? 0 Play Time 07:19:19 Cumulative 25.3 hours Start 2026.08.08 @ 20:15:00 End 2026.08.10 @ 00:40:27 Sessions 3 Manual Loads 0 Difficulty Rogue Special Mode None Game No. 13 Rogue 13 Adventurer 0 Explorer 0 Win Type - Total 0 Types 0/0/0/0/0/0/0/0/0/0 Lore% 22 Gallery% 18 Achievement% 23 Wizard Run 0 Options --------- Layout 1 ASCII 0 Keyboard 0 Movement Mouse Keybinds 0 Fullscreen 1 Font 24/Smallcaps Map View 50x35 Zoom Use 0% Tactical HUD 1 Map Filters NONE Filters NONE Steam 1 RUN: 64375818-7102-4770-b999-11560ed97167